fUSD/lending_fUSD_20250202
["ID","MTS","AMOUNT","RATE_DAILY","PERIOD"]
[351293145,1738506883210,-500.0,0.00011505,2]
[351293146,1738506883239,-500.0,0.00011505,2]
[351293147,1738506883269,-500.0,0.00011505,2]
[351293148,1738506883299,-1041.34,0.00011505,2]
[351293149,1738506883328,-500.0,0.00011505,2]
[351293150,1738506883357,-500.0,0.00011505,2]
[351293151,1738506883386,-500.0,0.00011505,2]
[351293152,1738506883416,-500.0,0.00011505,2]
[351293153,1738506883445,-500.0,0.00011505,2]
[351293154,1738506883474,-593.98,0.00011505,2]
[351293155,1738506883503,-500.0,0.00011505,2]
[351293156,1738506883534,-543.71,0.00011505,2]
[351293157,1738506883563,-500.0,0.00011505,2]
[351293158,1738506883592,-500.0,0.00011505,2]
[351293159,1738506883622,-500.0,0.00011505,2]
[351293160,1738506883652,-561.48,0.00011505,2]
[351293161,1738506883681,-500.0,0.00011505,2]
[351293162,1738506883710,-500.0,0.00011505,2]
[351293163,1738506883739,-2551.31,0.00011505,2]
[351293164,1738506883769,-500.0,0.00011505,2]
[351293165,1738506883797,-500.0,0.00011505,2]
[351293166,1738506883826,-500.0,0.00011505,2]
[351293167,1738506883855,-500.0,0.00011505,2]
[351293168,1738506883884,-500.0,0.00011505,2]
[351293169,1738506883918,-4671.75,0.00011505,2]
[351293170,1738506883951,-500.0,0.00011505,2]
[351293171,1738506883981,-500.0,0.00011505,2]
[351293172,1738506884012,-500.0,0.00011505,2]
[351293173,1738506884041,-1647.85,0.00011505,2]
[351293174,1738506884072,-500.0,0.00011505,2]
[351293175,1738506884102,-2040.76,0.00011505,2]
[351293176,1738506884131,-500.0,0.00011505,2]
[351293177,1738506884161,-512.5,0.00011505,2]
[351293178,1738506884191,-500.0,0.00011505,2]
[351293179,1738506884220,-500.0,0.00011505,2]
[351293180,1738506884250,-1415.89,0.00011505,2]
[351293181,1738506884278,-500.0,0.00011505,2]
[351293182,1738506884307,-500.0,0.00011505,2]
[351293183,1738506884336,-500.0,0.00011505,2]
[351293184,1738506884364,-500.0,0.00011505,2]
[351293185,1738506884394,-500.0,0.00011505,2]
[351293186,1738506884423,-500.0,0.00011505,2]
[351293187,1738506884450,-4941.79,0.00011505,2]
[351293188,1738506884481,-500.0,0.00011505,2]
[351293189,1738506884509,-500.0,0.00011505,2]
[351293190,1738506884947,-528.52,0.00011505,2]
[351293191,1738506884959,-150.0,0.00011505,2]
[351293192,1738506884970,-129.22,0.00011505,2]
[351293193,1738506884979,-170.78,0.00011505,2]
[351293194,1738506884990,-329.22,0.00011505,2]
[351293195,1738506885005,-170.78,0.00011505,2]
[351293196,1738506885020,-500.0,0.00011505,2]
[351293197,1738506885043,-500.0,0.00011505,2]
[351293198,1738506885056,-3.16,0.00011505,2]
[351293199,1738506885065,-496.84,0.00011505,2]
[351293200,1738506885081,-3.16,0.00011505,2]
[351293201,1738506885091,-496.84,0.00011505,2]
[351293202,1738506885109,-3.16,0.00011505,2]
[351293203,1738506885120,-500.0,0.00011505,2]
[351293204,1738506885131,-165.79,0.00011505,2]
[351293205,1738506885144,-334.21,0.00011505,2]
[351293206,1738506885154,-165.79,0.00011505,2]
[351293207,1738506885165,-500.0,0.00011505,2]
[351293208,1738506885176,-1342.71,0.00011505,2]
[351293209,1738506885185,-24.78,0.00011505,2]
[351293210,1738506885197,-500.0,0.00011505,2]
[351293211,1738506885207,-500.0,0.00011505,2]
[351293212,1738506885227,-500.0,0.00011505,2]
[351293213,1738506885244,-500.0,0.00011505,2]
[351293214,1738506885258,-170.19,0.00011505,2]
[351293215,1738506885269,-329.81,0.00011505,2]
[351293216,1738506885281,-170.19,0.00011505,2]
[351293217,1738506885292,-329.81,0.00011505,2]
[351293218,1738506885309,-170.19,0.00011505,2]
[351293219,1738506885318,-500.0,0.00011505,2]
[351293220,1738506885327,-500.0,0.00011505,2]
[351293221,1738506885337,-37.25,0.00011505,2]
[351293222,1738506885349,-462.75,0.00011505,2]
[351293223,1738506885359,-145.02,0.00011505,2]
[351293224,1738506885370,-180.50933546,0.00011505,2]
[351293225,1738506885382,-174.47066454,0.00011505,2]
[351293226,1738506885391,-325.52933546,0.00011505,2]
[351293227,1738506885403,-458.35066454,0.00011505,2]
[351293228,1738506885413,-435.58933546,0.00011505,2]
[351293229,1738506885424,-99.89066454,0.00011505,2]
[351293230,1738506885434,-400.10933546,0.00011505,2]
[351293231,1738506885446,-500.0,0.00011505,2]
[351293232,1738506885457,-893.11,0.00011505,2]
[351293233,1738506885478,-500.0,0.00011368,2]
[351293234,1738506885498,-533.68,0.00011505,2]
[351293235,1738506885511,-245.36481169,0.00011505,2]
[351293236,1738506885523,-904.83,0.00011505,2]
[351293237,1738506885557,-500.0,0.00011505,2]
[351293238,1738506885610,-500.0,0.00011505,2]
[351293239,1738506885621,-1199.7,0.00011505,2]
[351293240,1738506885632,-500.0,0.00011505,2]
[351293241,1738506885643,-500.0,0.00011505,2]
[351293242,1738506885654,-354.70585285,0.00011505,2]
[351293243,1738506885664,-145.29414715,0.00011505,2]
[351293244,1738506885683,-171.36257749,0.00011505,2]
[351293245,1738506885692,-328.63742251,0.00011505,2]
[351293246,1738506885708,-171.36257749,0.00011505,2]
[351293247,1738506885717,-328.63742251,0.00011505,2]
[351293248,1738506885728,-171.36257749,0.00011505,2]
[351293249,1738506885738,-554.19,0.00011505,2]
[351293250,1738506885747,-246.14742251,0.00011505,2]
[351293251,1738506885766,-253.85257749,0.00011505,2]
[351293252,1738506885775,-246.14742251,0.00011505,2]
[351293253,1738506885805,-325.05257749,0.00011505,2]
[351293254,1738506885814,-174.94742251,0.00011505,2]
[351293255,1738506885825,-415.84257749,0.00011505,2]
[351293256,1738506885834,-442.57742251,0.00011505,2]
[351293257,1738506885846,-57.42257749,0.00011505,2]
[351293258,1738506885856,-442.57742251,0.00011505,2]
[351293259,1738506885868,-254.31257749,0.00011505,2]
[351293260,1738506885877,-500.0,0.00011505,2]
[351293261,1738506885886,-289.86742251,0.00011505,2]
[351293262,1738506885898,-210.13257749,0.00011505,2]
[351293263,1738506885907,-338.76742251,0.00011505,2]
[351293264,1738506885919,-161.23257749,0.00011505,2]
[351293265,1738506885928,-338.76742251,0.00011506,2]
[351293266,1738506885947,-161.23257749,0.00011506,2]
[351293267,1738506885956,-338.76742251,0.00011506,2]
[351293268,1738506885967,-161.23257749,0.00011506,2]
[351293269,1738506885976,-668.95,0.00011506,2]
[351293270,1738506885986,-169.81742251,0.00011506,2]
[351293271,1738506886002,-330.18257749,0.00011506,2]
[351293272,1738506886013,-169.81742251,0.00011506,2]
[351293273,1738506886037,-1102.57,0.00011368,2]
[351293274,1738506886046,-330.18257749,0.00011506,2]
[351293275,1738506886056,-500.0,0.00011506,2]
[351293276,1738506886065,-347.64742251,0.00011506,2]
[351293277,1738506886079,-500.0,0.00011506,2]
[351293278,1738506886091,-519.84257749,0.00011506,2]
[351293279,1738506886100,-500.0,0.00011506,2]
[351293280,1738506886110,-267.65742251,0.00011506,2]
[351293281,1738506886125,-232.34257749,0.00011506,2]
[351293282,1738506886135,-473.08060062,0.00011506,2]
[351293283,1738506886144,-500.0,0.00011506,2]
[351293284,1738506886155,-500.0,0.00011506,2]
[351293285,1738506886165,-582.34682189,0.00011506,2]
[351293286,1738506886176,-625.09317811,0.00011506,2]
[351293287,1738506886186,-607.77,0.00011506,2]
[351293288,1738506886196,-361.75682189,0.00011506,2]
[351293289,1738506886216,-500.0,0.00011368,2]
[351293290,1738506886235,-467.41,0.00011368,2]
[351293291,1738506886244,-32.59,0.00011506,2]
[351293292,1738506886264,-105.65317811,0.00011506,2]
[351293293,1738506886273,-394.34682189,0.00011506,2]
[351293294,1738506886284,-499.59317811,0.00011506,2]
[351293295,1738506886294,-0.40682189,0.00011506,2]
[351293296,1738506886313,-500.0,0.00011505,2]
[351293297,1738506886333,-500.0,0.00010958,2]
[351293298,1738506886343,-160.37,0.00011505,2]
[351293299,1738506886355,-442.2,0.00011505,2]
[351293300,1738506886364,-438.13,0.00011506,2]
[351293301,1738506886380,-61.46317811,0.00011506,2]
[351293302,1738506886390,-636.88443398,0.00011506,2]
[351293303,1738506886399,-893.11,0.00011506,2]
[351293304,1738506886410,-287.11238791,0.00011506,2]
[351293305,1738506886421,-212.88761209,0.00011506,2]
[351293306,1738506886430,-533.68,0.00011506,2]
[351293307,1738506886440,-716.40238791,0.00011506,2]
[351293308,1738506886459,-615.22,0.00011505,2]
[351293309,1738506886500,-352.19,0.00011505,2]
[351293310,1738506886509,-147.81,0.00011506,2]
[351293311,1738506886580,-40.61761209,0.00011506,2]
[351293312,1738506886590,-459.38238791,0.00011506,2]
[351293313,1738506886606,-40.61761209,0.00011506,2]
[351293314,1738506886616,-500.0,0.00011506,2]
[351293315,1738506886626,-3.09238791,0.00011506,2]
[351293316,1738506886663,-500.0,0.00011506,2]
[351293317,1738506886674,-696.60761209,0.00011506,2]
[351293318,1738506886684,-500.0,0.00011506,2]
[351293319,1738506886693,-295.97238791,0.00011506,2]
[351293320,1738506886704,-204.02761209,0.00011506,2]
[351293321,1738506886713,-295.97238791,0.00011506,2]
[351293322,1738506886729,-204.02761209,0.00011506,2]
[351293323,1738506886738,-971.7,0.00011506,2]
[351293324,1738506886748,-214.37238791,0.00011506,2]
[351293325,1738506886760,-285.62761209,0.00011506,2]
[351293326,1738506886770,-214.37238791,0.00011506,2]
[351293327,1738506886789,-500.0,0.00011506,2]
[351293328,1738506886801,-144.04761209,0.00011506,2]
[351293329,1738506886811,-355.95238791,0.00011506,2]
[351293330,1738506886822,-144.04761209,0.00011506,2]
[351293331,1738506886832,-355.95238791,0.00011506,2]
[351293332,1738506886853,-688.22761209,0.00011506,2]
[351293333,1738506886864,-548.9,0.00011506,2]
[351293334,1738506886874,-500.0,0.00011506,2]
[351293335,1738506886885,-500.0,0.00011506,2]
[351293336,1738506886895,-1000.0,0.00011506,2]
[351293337,1738506886907,-770.20238791,0.00011506,2]
[351293338,1738506886931,-500.0,0.00011506,2]
[351293339,1738506886951,-500.0,0.00011506,2]
[351293340,1738506886971,-510.19761209,0.00011506,2]
[351293341,1738506886982,-500.0,0.00011506,2]
[351293342,1738506886993,-1287.5,0.00011506,2]
[351293343,1738506887006,-1063.76238791,0.00011506,2]
[351293344,1738506887029,-1224.00761209,0.00011506,2]
[351293345,1738506887039,-500.0,0.00011506,2]
[351293346,1738506887049,-1367.66238791,0.00011506,2]
[351293347,1738506887061,-226.95761209,0.00011506,2]
[351293348,1738506887071,-273.04238791,0.00011506,2]
[351293349,1738506887083,-226.95761209,0.00011506,2]
[351293350,1738506887092,-500.0,0.00011506,2]
[351293351,1738506887102,-880.33,0.00011506,2]
[351293352,1738506887112,-660.37,0.00011506,2]
[351293353,1738506887122,-1245.88238791,0.00011506,2]
[351293354,1738506887134,-335.7551522,0.00011506,2]
[351293355,1738506887145,-296.93245989,0.00011506,2]
[351293356,1738506887156,-1462.97,0.00011506,2]
[351293357,1738506887166,-74.64754011,0.00011506,2]
[351293358,1738506887179,-164.67780548,0.00011506,2]
[351293359,1738506887191,-375.89465441,0.00011506,2]
[351293360,1738506887201,-124.10534559,0.00011506,2]
[351293361,1738506887230,-375.89465441,0.00011506,2]
[351293362,1738506887239,-402.19534559,0.00011506,2]
[351293363,1738506887252,-97.80465441,0.00011506,2]
[351293364,1738506887262,-500.0,0.00011506,2]
[351293365,1738506887272,-1201.54534559,0.00011506,2]
[351293366,1738506887299,-291.03465441,0.00011506,2]
[351293367,1738506887310,-208.96534559,0.00011506,2]
[351293368,1738506887322,-1181.13465441,0.00011506,2]
[351293369,1738506887332,-21.58534559,0.00011506,2]
[351293370,1738506887343,-478.41465441,0.00011506,2]
[351293371,1738506887353,-21.58534559,0.00011506,2]
[351293372,1738506887365,-478.41465441,0.00011506,2]
[351293373,1738506887374,-21.58534559,0.00011506,2]
[351293374,1738506887386,-478.41465441,0.00011506,2]
[351293375,1738506887395,-183.49534559,0.00011506,2]
[351293376,1738506887407,-500.0,0.00011506,2]
[351293377,1738506887419,-500.0,0.00011506,2]
[351293378,1738506887434,-1378.04,0.00011506,2]
[351293379,1738506887453,-1445.79465441,0.00011506,2]
[351293380,1738506887463,-500.0,0.00011506,2]
[351293381,1738506887472,-500.0,0.00011506,2]
[351293382,1738506887482,-3264.85534559,0.00011506,2]
[351293383,1738506887510,-96.60465441,0.00011506,2]
[351293384,1738506887519,-403.39534559,0.00011506,2]
[351293385,1738506887538,-2688.27465441,0.00011506,2]
[351293386,1738506887548,-216.17534559,0.00011506,2]
[351293387,1738506887559,-500.0,0.00011506,2]
[351293388,1738506887570,-500.0,0.00011506,2]
[351293389,1738506887582,-861.56,0.00011506,2]
[351293390,1738506887593,-771.15,0.00011506,2]
[351293391,1738506887606,-500.0,0.00011506,2]
[351293392,1738506887618,-164.65465441,0.00011506,2]
[351293393,1738506887627,-335.34534559,0.00011506,2]
[351293394,1738506887638,-500.0,0.00011506,2]
[351293395,1738506887650,-999.20465441,0.00011506,2]
[351293396,1738506887660,-500.0,0.00011506,2]
[351293397,1738506887670,-960.32534559,0.00011506,2]
[351293398,1738506887705,-500.0,0.00011506,2]
[351293399,1738506887716,-339.02465441,0.00011506,2]
[351293400,1738506887726,-414.32534559,0.00011506,2]
[351293401,1738506887737,-363.76465441,0.00011506,2]
[351293402,1738506887747,-500.0,0.00011506,2]
[351293403,1738506887756,-650.73534559,0.00011506,2]
[351293404,1738506887768,-500.0,0.00011506,2]
[351293405,1738506887788,-784.38,0.00010958,2]
[351293406,1738506887798,-51.98465441,0.00011506,2]
[351293407,1738506887808,-500.0,0.00011506,2]
[351293408,1738506887817,-462.35534559,0.00011506,2]
[351293409,1738506887833,-500.0,0.00011506,2]
[351293410,1738506887844,-415.68465441,0.00011506,2]
[351293411,1738506887854,-84.31534559,0.00011506,2]
[351293412,1738506887865,-463.94696792,0.00011506,2]
[351293413,1738506887876,-36.05303208,0.00011506,2]
[351293414,1738506887894,-500.0,0.00011506,2]
[351293415,1738506887924,-500.0,0.00010958,2]
[351293416,1738506887947,-500.0,0.00011506,2]
[351293417,1738506887959,-500.0,0.00011506,2]
[351293418,1738506887970,-500.0,0.00011506,2]
[351293419,1738506887990,-500.0,0.00011095,2]
[351293420,1738506888012,-284.38,0.00011095,2]
[351293421,1738506888021,-215.62,0.00011506,2]
[351293422,1738506888033,-500.0,0.00011506,2]
[351293423,1738506888045,-500.0,0.00011506,2]
[351293424,1738506888057,-1867.28,0.00011506,2]
[351293425,1738506888081,-252.39023315,0.00011506,2]
[351293426,1738506888109,-339.30673477,0.00011506,2]
[351293427,1738506888119,-160.69326523,0.00011506,2]
[351293428,1738506888139,-500.0,0.00010759,2]
[351293429,1738506888151,-500.0,0.00010759,2]
[351293430,1738506888172,-500.0,0.00010759,2]
[351293431,1738506888187,-961.27,0.00010759,2]
[351293432,1738506888200,-840.49,0.00010759,2]
[351293433,1738506888212,-500.0,0.00010759,2]
[351293434,1738506888223,-500.0,0.00010759,2]
[351293435,1738506888239,-500.0,0.00010759,2]
[351293436,1738506888259,-613.961201,0.00010759,2]
[351293437,1738506888268,-153.138799,0.00011232,2]
[351293438,1738506888288,-500.0,0.00011232,2]
[351293439,1738506888300,-131.241201,0.00011232,2]
[351293440,1738506888310,-489.498799,0.00011506,2]
[351293441,1738506888330,-784.38,0.00011369,2]
[351293442,1738506888340,-11.71793577,0.00011506,2]
[351293443,1738506888350,-203.90206423,0.00011506,2]
[351293444,1738506888361,-296.09793577,0.00011506,2]
[351293445,1738506888371,-515.25206423,0.00011506,2]
[351293446,1738506888383,-500.0,0.00011506,2]
[351293447,1738506888395,-543.71,0.00011506,2]
[351293448,1738506888406,-500.0,0.00011506,2]
[351293449,1738506888419,-500.0,0.00011506,2]
[351293450,1738506888431,-345.48793577,0.00011506,2]
[351293451,1738506888441,-154.51206423,0.00011506,2]
[351293452,1738506888461,-345.48793577,0.00011506,2]
[351293453,1738506888471,-164.84200298,0.00011506,2]
[351293454,1738506888483,-500.0,0.00011506,2]
[351293455,1738506888495,-196.71799702,0.00011506,2]
[351293456,1738506888505,-303.28200298,0.00011506,2]
[351293457,1738506888517,-196.71799702,0.00011506,2]
[351293458,1738506888527,-303.28200298,0.00011506,2]
[351293459,1738506888547,-467.86799702,0.00011506,2]
[351293460,1738506888770,-32.13200298,0.00011506,2]
[351293461,1738506888783,-467.86799702,0.00011506,2]
[351293462,1738506888792,-32.13200298,0.00011506,2]
[351293463,1738506888804,-500.0,0.00011506,2]
[351293464,1738506888822,-500.0,0.00011506,2]
[351293465,1738506888842,-500.0,0.00011506,2]
[351293466,1738506888857,-500.0,0.00011506,2]
[351293467,1738506888869,-427.39799702,0.00011506,2]
[351293468,1738506888879,-72.60200298,0.00011506,2]
[351293469,1738506888892,-381.05799702,0.00011506,2]
[351293470,1738506888902,-118.94200298,0.00011506,2]
[351293471,1738506888923,-381.05799702,0.00011506,2]
[351293472,1738506888932,-142.86525554,0.00011506,2]
[351293473,1738506888944,-500.0,0.00011506,2]
[351293474,1738506888964,-110.48474446,0.00011506,2]
[351293475,1738506888974,-389.51525554,0.00011506,2]
[351293476,1738506888995,-543.71,0.00011506,2]
[351293477,1738506889013,-500.0,0.00011506,2]
[351293478,1738506889026,-81.27474446,0.00011506,2]
[351293479,1738506889035,-418.72525554,0.00011506,2]
[351293480,1738506889055,-500.0,0.00011506,2]
[351293481,1738506889067,-500.0,0.00011506,2]
[351293482,1738506889079,-379.99474446,0.00011506,2]
[351293483,1738506889090,-120.00525554,0.00011506,2]
[351293484,1738506889110,-379.99474446,0.00011506,2]
[351293485,1738506889120,-120.00525554,0.00011506,2]
[351293486,1738506889132,-379.99474446,0.00011506,2]
[351293487,1738506889142,-120.00525554,0.00011506,2]
[351293488,1738506889170,-500.0,0.00010958,2]
[351293489,1738506889182,-46.07,0.00010958,2]
[351293490,1738506889192,-379.99474446,0.00011506,2]
[351293491,1738506889201,-73.93525554,0.00011506,2]
[351293492,1738506889217,-426.06474446,0.00011506,2]
[351293493,1738506889226,-73.93525554,0.00011506,2]
[351293494,1738506889237,-426.06474446,0.00011506,2]
[351293495,1738506889247,-73.93525554,0.00011506,2]
[351293496,1738506889266,-426.06474446,0.00011506,2]
[351293497,1738506889276,-73.93525554,0.00011506,2]
[351293498,1738506889288,-426.06474446,0.00011506,2]
[351293499,1738506889298,-73.93525554,0.00011506,2]
[351293500,1738506889309,-426.06474446,0.00011506,2]
[351293501,1738506889319,-73.93525554,0.00011506,2]
[351293502,1738506889331,-426.06474446,0.00011506,2]
[351293503,1738506889341,-73.93525554,0.00011506,2]
[351293504,1738506889360,-500.0,0.00011506,2]
[351293505,1738506889380,-546.07,0.00011095,2]
[351293506,1738506889390,-237.81,0.00011506,2]
[351293507,1738506889425,-500.0,0.00011506,2]
[351293508,1738506889436,-500.0,0.00011506,2]
[351293509,1738506889463,-500.0,0.00011232,2]
[351293510,1738506889474,-46.07,0.00011232,2]
[351293511,1738506889484,-55.53474446,0.00011506,2]
[351293512,1738506889493,-500.0,0.00011506,2]
[351293513,1738506889503,-67.34525554,0.00011506,2]
[351293514,1738506889514,-432.65474446,0.00011506,2]
[351293515,1738506889523,-67.34525554,0.00011506,2]
[351293516,1738506889535,-432.65474446,0.00011506,2]
[351293517,1738506889544,-67.34525554,0.00011506,2]
[351293518,1738506889564,-432.65474446,0.00011506,2]
[351293519,1738506889574,-934.83525554,0.00011506,2]
[351293520,1738506889594,-26.43474446,0.00011506,2]
[351293521,1738506889603,-473.56525554,0.00011506,2]
[351293522,1738506889615,-366.92474446,0.00011506,2]
[351293523,1738506889624,-133.07525554,0.00011506,2]
[351293524,1738506889644,-155.29238,0.00011368,2]
[351293525,1738506889653,-344.70762,0.00011506,2]
[351293526,1738506889674,-22.21712446,0.00011506,2]
[351293527,1738506889684,-477.78287554,0.00011506,2]
[351293528,1738506889703,-500.0,0.00011369,2]
[351293529,1738506889714,-46.07,0.00011369,2]
[351293530,1738506889724,-22.21712446,0.00011506,2]
[351293531,1738506889733,-431.71287554,0.00011506,2]
[351293532,1738506889744,-335.38712446,0.00011506,2]
[351293533,1738506889754,-164.61287554,0.00011506,2]
[351293534,1738506889765,-335.38712446,0.00011506,2]
[351293535,1738506889775,-784.38,0.00011506,2]
[351293536,1738506889784,-87.67287554,0.00011642,2]
[351293537,1738506889796,-412.32712446,0.00011642,2]
[351293538,1738506889806,-195.44287554,0.00011642,2]
[351293539,1738506889833,-186.55669489,0.00011642,2]
[351293540,1738506889842,-313.44330511,0.00011642,2]
[351293541,1738506889858,-186.55669489,0.00011642,2]
[351293542,1738506889867,-500.0,0.00011642,2]
[351293543,1738506889877,-207.38330511,0.00011642,2]
[351293544,1738506889889,-292.61669489,0.00011642,2]
[351293545,1738506889898,-207.38330511,0.00011642,2]
[351293546,1738506889918,-292.61669489,0.00011642,2]
[351293547,1738506889927,-207.38330511,0.00011642,2]
[351293548,1738506889939,-292.61669489,0.00011642,2]
[351293549,1738506889948,-500.0,0.00011642,2]
[351293550,1738506889957,-100.49330511,0.00011642,2]
[351293551,1738506889977,-500.0,0.00011506,2]
[351293552,1738506889989,-46.07,0.00011506,2]
[351293553,1738506890001,-399.50669489,0.00011642,2]
[351293554,1738506890013,-88.10330511,0.00011642,2]
[351293555,1738506890029,-411.89669489,0.00011642,2]
[351293556,1738506890038,-492.93330511,0.00011642,2]
[351293557,1738506890059,-34.21669489,0.00011642,2]
[351293558,1738506890068,-465.78330511,0.00011642,2]
[351293559,1738506890079,-34.21669489,0.00011642,2]
[351293560,1738506890090,-465.78330511,0.00011642,2]
[351293561,1738506890103,-34.21669489,0.00011642,2]
[351293562,1738506890113,-679.54,0.00011642,2]
[351293563,1738506890122,-485.94330511,0.00011642,2]
[351293564,1738506890133,-14.05669489,0.00011642,2]
[351293565,1738506890143,-485.94330511,0.00011642,2]
[351293566,1738506890162,-14.05669489,0.00011642,2]
[351293567,1738506890172,-485.94330511,0.00011642,2]
[351293568,1738506890183,-14.05669489,0.00011642,2]
[351293569,1738506890193,-485.94330511,0.00011642,2]
[351293570,1738506890213,-14.05669489,0.00011642,2]
[351293571,1738506890223,-209.15493737,0.00011642,2]
[351293572,1738506890232,-500.0,0.00011642,2]
[351293573,1738506890242,-248.48836774,0.00011642,2]
[351293574,1738506890254,-251.51163226,0.00011642,2]
[351293575,1738506890263,-248.48836774,0.00011642,2]
[351293576,1738506890284,-251.51163226,0.00011642,2]
[351293577,1738506890293,-500.0,0.00011642,2]
[351293578,1738506890302,-106.90836774,0.00011642,2]
[351293579,1738506890314,-393.09163226,0.00011642,2]
[351293580,1738506890323,-106.90836774,0.00011642,2]
[351293581,1738506890343,-393.09163226,0.00011642,2]
[351293582,1738506890352,-500.0,0.00011642,2]
[351293583,1738506890362,-151.08836774,0.00011642,2]
[351293584,1738506890372,-548.9,0.00011642,2]
[351293585,1738506890391,-341.35163226,0.00011642,2]
[351293586,1738506890400,-158.64836774,0.00011642,2]
[351293587,1738506890411,-341.35163226,0.00011642,2]
[351293588,1738506890420,-158.64836774,0.00011642,2]
[351293589,1738506890432,-182.91990546,0.00011642,2]
[351293590,1738506890441,-500.0,0.00011642,2]
[351293591,1738506890450,-317.08009454,0.00011642,2]
[351293592,1738506890461,-182.91990546,0.00011642,2]
[351293593,1738506890473,-319.7900196,0.00011642,2]
[351293594,1738506890499,-180.2099804,0.00011642,2]
[351293595,1738506890508,-593.98,0.00011642,2]
[351293596,1738506890518,-500.0,0.00011642,2]
[351293597,1738506890527,-543.71,0.00011642,2]
[351293598,1738506890537,-462.5000196,0.00011642,2]
[351293599,1738506890550,-37.4999804,0.00011642,2]
[351293600,1738506890559,-462.5000196,0.00011642,2]
[351293601,1738506890572,-37.4999804,0.00011642,2]
[351293602,1738506890582,-500.0,0.00011642,2]
[351293603,1738506890591,-561.48,0.00011642,2]
[351293604,1738506890601,-188.5200196,0.00011642,2]
[351293605,1738506890625,-311.4799804,0.00011642,2]
[351293606,1738506890635,-500.0,0.00011642,2]
[351293607,1738506890644,-1476.2900196,0.00011642,2]
[351293608,1738506890655,-500.0,0.00011642,2]
[351293609,1738506890667,-575.0199804,0.00011642,2]
[351293610,1738506890676,-500.0,0.00011642,2]
[351293611,1738506890686,-500.0,0.00011642,2]
[351293612,1738506890695,-19.6000196,0.00011642,2]
[351293613,1738506890706,-480.3999804,0.00011642,2]
[351293614,1738506890716,-19.6000196,0.00011642,2]
[351293615,1738506890734,-480.3999804,0.00011642,2]
[351293616,1738506890743,-19.6000196,0.00011642,2]
[351293617,1738506890755,-480.3999804,0.00011642,2]
[351293618,1738506890764,-179.9700196,0.00011642,2]
[351293619,1738506890783,-880.33,0.00011642,2]
[351293620,1738506890794,-1878.57,0.00011642,2]
[351293621,1738506890804,-1462.97,0.00011642,2]
[351293622,1738506890816,-269.9099804,0.00011642,2]
[351293623,1738506890825,-345.3100196,0.00011642,2]
[351293624,1738506890836,-154.6899804,0.00011642,2]
[351293625,1738506890845,-345.3100196,0.00011642,2]
[351293626,1738506890857,-154.6899804,0.00011642,2]
[351293627,1738506890866,-345.3100196,0.00011642,2]
[351293628,1738506890888,-154.6899804,0.00011642,2]
[351293629,1738506890898,-345.3100196,0.00011642,2]
[351293630,1738506890918,-1302.5399804,0.00011642,2]
[351293631,1738506890928,-190.0400196,0.00011642,2]
[351293632,1738506890940,-309.9599804,0.00011642,2]
[351293633,1738506890950,-1080.1400196,0.00011642,2]
[351293634,1738506890962,-500.0,0.00011642,2]
[351293635,1738506890980,-307.76115527,0.00011642,2]
[351293636,1738506891001,-152.85882513,0.00011642,2]
[351293637,1738506891011,-347.14117487,0.00011642,2]
[351293638,1738506891022,-152.85882513,0.00011642,2]
[351293639,1738506891031,-347.14117487,0.00011642,2]
[351293640,1738506891043,-165.35882513,0.00011642,2]
[351293641,1738506891052,-500.0,0.00011642,2]
[351293642,1738506891062,-500.0,0.00011642,2]
[351293643,1738506891071,-1415.89,0.00011642,2]
[351293644,1738506891080,-500.0,0.00011642,2]